bitfinex/quotes_SOLUSD_20250313
["timestamp","ask_amount","ask_price","bid_price","bid_amount"]
[1741881620971,0.03,124.54,124.52,22.99064069]
[1741881621680,0.03,124.54,124.51,193.17716595]
[1741881621882,18.67964886,124.54,124.49,14.2611]
[1741881622074,22.73631755,124.54,124.49,30.80631755]
[1741881622389,36.33192005,124.54,124.49,44.40192005]
[1741881622768,36.33192005,124.54,124.49,356.40192005]
[1741881622970,18.64964886,124.52,124.49,8.1]
[1741881623170,36.30192005,124.51,124.47,8.1]
[1741881623586,36.30192005,124.5,124.47,8.1]
[1741881623902,36.30192005,124.52,124.48,0.28432314]
[1741881624103,36.33192005,124.54,124.49,36.30192005]
[1741881624276,0.03,124.54,124.51,36.58624319]
[1741881624778,0.03,124.54,124.5,36.30192005]
[1741881625094,36.33192005,124.54,124.49,0.14216157]
[1741881625286,36.33192005,124.54,124.49,36.44408162]
[1741881625870,36.33192005,124.54,124.49,44.54408162]
[1741881626103,54.95156891,124.52,124.49,8.1]
[1741881626392,54.95156891,124.52,124.47,56.27716595]
[1741881626572,54.95156891,124.52,124.47,64.37716595]
[1741881626774,36.30192005,124.51,124.47,64.37716595]
[1741881626993,36.30192005,124.51,124.47,8.1]
[1741881627298,62.98256891,124.52,124.47,8.1]
[1741881627494,36.30192005,124.51,124.47,8.1]
[1741881627686,26.68064886,124.52,124.46,44.40192005]
[1741881627887,26.68064886,124.52,124.47,36.30192005]
[1741881628091,62.98256891,124.52,124.46,44.40192005]
[1741881628279,21.6944,124.54,124.48,36.30192005]
[1741881628280,18.64964886,124.53,124.48,36.30192005]
[1741881628481,9.6499,124.54,124.49,36.30192005]
[1741881628883,45.95182005,124.54,124.49,36.30192005]
[1741881629193,54.95156891,124.53,124.49,312.0]
[1741881629396,9.6499,124.54,124.49,348.30192005]
[1741881629584,45.95182005,124.54,124.49,348.30192005]
[1741881629897,9.6499,124.54,124.49,348.30192005]
[1741881630101,9.6499,124.54,124.49,312.0]
[1741881630102,18.64964886,124.53,124.49,312.0]
[1741881630276,54.95156891,124.53,124.49,312.0]
[1741881630594,54.95156891,124.53,124.48,44.47738162]
[1741881630802,62.98186891,124.53,124.48,44.47738162]
[1741881630972,18.64964886,124.53,124.48,44.47738162]
[1741881631177,62.98176891,124.53,124.48,8.17546157]
[1741881631494,62.98176891,124.53,124.48,36.44408162]
[1741881631799,26.67984886,124.53,124.48,36.44408162]
[1741881631994,26.67984886,124.53,124.49,36.30192005]
[1741881632191,26.67984886,124.53,124.48,44.47738162]
[1741881632397,62.98176891,124.53,124.48,44.47738162]
[1741881633307,36.33192005,124.54,124.49,36.44408162]
[1741881633481,26.70914886,124.54,124.5,36.30192005]
[1741881633679,63.01106891,124.54,124.49,36.44408162]
[1741881633884,26.70914886,124.54,124.49,36.44408162]
[1741881634099,63.01106891,124.54,124.49,36.44408162]
[1741881634402,0.03,124.54,124.51,36.30192005]
[1741881634616,0.03,124.54,124.52,36.30192005]
[1741881634802,0.03,124.54,124.53,36.30192005]
[1741881635102,0.03,124.54,124.53,36.58624319]
[1741881635297,0.03,124.54,124.53,229.76340914]
[1741881635482,0.03,124.54,124.53,237.79350914]
[1741881636392,0.03,124.59,124.57,0.28432314]
[1741881636698,0.03,124.59,124.57,44.68624319]
[1741881637100,0.03,124.59,124.58,36.30192005]
[1741881637605,0.03,124.59,124.58,356.61314319]
[1741881637902,0.03,124.59,124.58,348.58624319]
[1741881638106,0.03,124.59,124.58,356.61314319]
[1741881638883,0.03,124.59,124.58,348.58624319]
[1741881640213,0.03,124.59,124.58,312.28432314]
[1741881640579,0.03,124.59,124.58,312.0]
[1741881640784,0.03,124.59,124.56,20.14216157]
[1741881640995,0.03,124.59,124.55,8.08]
[1741881641419,36.30192005,124.58,124.55,8.08]
[1741881641594,54.95156891,124.57,124.55,8.08]
[1741881641790,36.30192005,124.56,124.52,0.28432314]
[1741881642391,36.30192005,124.56,124.52,8.36432314]
[1741881642591,36.30192005,124.56,124.52,8.08]
[1741881642999,54.95156891,124.57,124.52,44.38192005]
[1741881643206,18.64964886,124.57,124.53,36.30192005]
[1741881643911,0.03,124.59,124.55,36.58624319]
[1741881644219,8.0564,124.59,124.55,36.58624319]
[1741881644590,44.35832005,124.59,124.54,36.30192005]
[1741881644784,54.95156891,124.58,124.53,36.58624319]
[1741881644991,54.95156891,124.58,124.53,36.44408162]
[1741881645400,18.64964886,124.58,124.53,36.44408162]
[1741881645603,44.35832005,124.59,124.54,36.30192005]
[1741881645806,18.67964886,124.59,124.55,36.30192005]
[1741881646093,18.67964886,124.59,124.54,44.33082005]
[1741881646410,18.67964886,124.59,124.54,0.28432314]
[1741881646717,18.67964886,124.59,124.54,36.58624319]
[1741881647099,18.67964886,124.59,124.55,36.30192005]
[1741881647310,0.03,124.59,124.57,36.30192005]
[1741881648817,0.03,124.59,124.56,44.47178162]
[1741881649018,0.03,124.59,124.55,312.0]
[1741881649219,0.03,124.59,124.5,36.30192005]
[1741881649220,54.95156891,124.57,124.52,8.08]
[1741881649416,54.95156891,124.57,124.52,44.38192005]
[1741881649814,18.64964886,124.57,124.52,52.41252005]
[1741881650320,54.95156891,124.57,124.52,16.1106]
[1741881650502,54.95156891,124.57,124.52,52.41252005]
[1741881651021,18.64964886,124.57,124.52,52.41252005]
[1741881651200,18.64964886,124.57,124.53,36.30192005]
[1741881651401,18.64964886,124.57,124.53,36.36492005]
[1741881651602,18.64964886,124.57,124.53,0.063]
[1741881651603,36.30192005,124.57,124.53,0.063]
[1741881652124,54.95156891,124.56,124.53,0.063]
[1741881652300,18.64964886,124.56,124.53,0.063]
[1741881652712,54.95156891,124.56,124.53,0.063]
[1741881653016,18.64964886,124.56,124.53,0.063]
[1741881653506,54.95156891,124.56,124.53,0.063]
[1741881653706,18.64964886,124.56,124.53,0.063]
[1741881654512,36.30192005,124.55,124.53,0.063]
[1741881654720,54.95156891,124.54,124.53,0.063]
[1741881655021,63.07426891,124.54,124.53,0.063]
[1741881655234,18.64964886,124.53,124.48,0.063]
[1741881655527,63.07426891,124.54,124.48,0.063]
[1741881655528,54.95156891,124.49,124.48,0.063]
[1741881655998,8.1227,124.54,124.48,0.063]
[1741881656325,36.30192005,124.51,124.48,0.063]
[1741881656700,36.30192005,124.5,124.48,0.063]
[1741881657017,36.30192005,124.51,124.48,0.063]
[1741881658328,18.64964886,124.5,124.48,0.063]
[1741881658627,54.95156891,124.5,124.48,0.063]
[1741881660217,18.64964886,124.5,124.48,0.063]
[1741881660605,36.30192005,124.51,124.48,0.063]
[1741881660816,18.64964886,124.51,124.48,0.063]
[1741881661028,54.95156891,124.51,124.48,0.063]
[1741881661906,18.64964886,124.53,124.48,0.063]
[1741881662218,36.30192005,124.56,124.51,36.30192005]
[1741881662421,36.30192005,124.53,124.48,0.34732314]
[1741881662821,36.30192005,124.53,124.48,36.64924319]
[1741881663237,36.30192005,124.52,124.48,320.0961]
[1741881663707,36.30192005,124.52,124.48,8.0961]
[1741881664222,54.95156891,124.53,124.48,44.39802005]
[1741881664424,36.30192005,124.52,124.48,8.0961]
[1741881665316,36.30192005,124.5,124.48,0.063]
[1741881665925,54.95156891,124.49,124.48,0.063]
[1741881666431,62.98426891,124.49,124.48,0.063]
[1741881667004,63.26859205,124.49,124.48,0.063]
[1741881667210,63.26859205,124.49,124.44,0.063]
[1741881667529,54.95156891,124.45,124.44,0.063]
[1741881668710,36.30192005,124.45,124.44,0.063]
[1741881668935,36.30192005,124.47,124.44,0.063]
[1741881669125,54.95156891,124.5,124.45,36.30192005]
[1741881669518,18.64964886,124.48,124.44,0.063]
[1741881669833,18.64964886,124.46,124.44,0.063]
[1741881670009,54.95156891,124.46,124.44,0.063]
[1741881670414,54.95156891,124.45,124.44,0.063]
[1741881670631,18.64964886,124.45,124.44,0.063]
[1741881671010,54.95156891,124.45,124.44,0.063]
[1741881671415,99.28878896,124.45,124.44,0.063]
[1741881671617,106.88778896,124.45,124.44,0.063]
[1741881672526,107.1721121,124.45,124.44,0.063]
[1741881672825,18.64964886,124.44,124.43,0.063]
[1741881673136,91.25348896,124.44,124.43,0.063]
[1741881673826,91.5378121,124.44,124.43,0.063]
[1741881674017,91.25348896,124.44,124.42,0.063]
[1741881674219,18.64964886,124.44,124.42,0.063]
[1741881674430,36.30192005,124.43,124.42,0.063]
[1741881676342,18.64964886,124.46,124.42,0.063]
[1741881676659,18.64964886,124.44,124.42,0.063]
[1741881677243,18.64964886,124.43,124.42,0.063]
[1741881677542,54.95156891,124.43,124.42,0.063]
[1741881678619,62.74576891,124.43,124.42,0.063]
[1741881678860,71.06669205,124.43,124.42,0.063]
[1741881679140,20.0,124.41,124.4,0.03]
[1741881679348,75.23589205,124.41,124.4,0.03]
[1741881679523,83.31589205,124.41,124.4,0.03]
[1741881680044,38.64964886,124.38,124.31,320.1071]
[1741881680212,111.25348896,124.38,124.31,312.063]
[1741881680417,111.25348896,124.38,124.31,0.063]
[1741881680418,111.5378121,124.38,124.31,0.063]
[1741881680619,117.7196121,124.38,124.31,0.063]
[1741881681038,125.7594121,124.38,124.31,0.063]
[1741881681241,132.326274,124.38,124.31,0.063]
[1741881682140,18.933972,124.37,124.31,0.063]
[1741881682334,62.99266891,124.36,124.31,0.063]
[1741881682740,54.95156891,124.36,124.31,0.063]
[1741881685360,18.64964886,124.36,124.31,36.36492005]
[1741881685865,18.64964886,124.36,124.33,36.30192005]
[1741881686028,18.64964886,124.37,124.33,36.30192005]
[1741881686355,18.64964886,124.37,124.31,20.1727]
[1741881686543,18.64964886,124.36,124.33,8.0428]
[1741881686756,36.30192005,124.36,124.33,8.0428]
[1741881686932,18.64964886,124.36,124.33,8.0428]
[1741881687345,36.30192005,124.38,124.33,44.34472005]
[1741881687546,18.64964886,124.38,124.34,36.30192005]
[1741881687751,18.64964886,124.4,124.34,36.30192005]
[1741881687935,54.95156891,124.4,124.34,36.30192005]
[1741881688134,18.64964886,124.37,124.33,28.1505]
[1741881688350,54.95156891,124.37,124.33,8.0428]
[1741881688537,54.95156891,124.36,124.31,8.1071]
[1741881688742,54.95156891,124.36,124.33,8.0429]
[1741881689636,54.95156891,124.36,124.32,8.0431]
[1741881689836,54.95156891,124.36,124.33,8.043]
[1741881690439,54.95156891,124.36,124.32,8.0437]
[1741881690959,62.99266891,124.36,124.31,0.063]
[1741881691174,62.99266891,124.36,124.31,8.1071]
[1741881691347,54.95156891,124.36,124.31,8.1071]
[1741881691741,62.99266891,124.36,124.31,8.1071]
[1741881692266,54.95156891,124.36,124.31,8.1071]
[1741881693068,54.95156891,124.36,124.31,0.063]
[1741881693069,62.99266891,124.36,124.31,0.063]
[1741881695740,54.95156891,124.36,124.31,0.063]
[1741881696170,62.99266891,124.36,124.31,0.063]
[1741881696356,54.95156891,124.36,124.31,0.063]
[1741881697669,18.64964886,124.36,124.31,0.063]
[1741881697874,18.64964886,124.36,124.32,36.30192005]
[1741881698075,18.64964886,124.36,124.33,36.30192005]
[1741881698254,18.64964886,124.36,124.34,36.30192005]
[1741881698452,36.30192005,124.4,124.35,36.36492005]
[1741881698653,18.64964886,124.39,124.35,36.36492005]
[1741881699161,54.95156891,124.4,124.35,36.36492005]
[1741881699481,0.063,124.37,124.35,36.36492005]
[1741881700276,0.063,124.37,124.36,8.0411]
[1741881701049,0.063,124.37,124.35,0.063]
[1741881701050,18.64964886,124.36,124.35,0.063]
[1741881701368,54.95156891,124.36,124.35,0.063]
[1741881701882,18.64964886,124.36,124.35,0.063]
[1741881702651,54.95156891,124.36,124.35,0.063]
[1741881703053,62.99266891,124.36,124.35,0.063]
[1741881704071,54.95156891,124.36,124.35,0.063]
[1741881705150,18.64964886,124.36,124.35,0.063]
[1741881705353,54.95156891,124.36,124.35,0.063]
[1741881706977,62.99266891,124.36,124.35,0.063]
[1741881707178,54.95156891,124.36,124.35,0.063]
[1741881708268,62.99266891,124.36,124.35,0.063]
[1741881712885,63.27699205,124.36,124.35,0.0001]
[1741881713076,64.90069205,124.36,124.35,0.0001]
[1741881713784,64.61636891,124.36,124.35,0.0001]
[1741881714084,62.99266891,124.36,124.35,0.0001]
[1741881715485,63.27699205,124.36,124.35,0.0001]
[1741881717383,62.99266891,124.36,124.35,0.0001]
[1741881720188,18.64964886,124.35,124.31,0.063]
[1741881720380,18.64964886,124.32,124.31,0.063]
[1741881720584,54.95156891,124.32,124.31,0.063]
[1741881720781,18.64964886,124.32,124.31,0.063]
[1741881721090,54.95156891,124.32,124.31,0.063]
[1741881721591,18.64964886,124.32,124.31,0.063]
[1741881722096,34.33228262,124.32,124.31,0.063]
[1741881722488,40.32385638,124.32,124.31,0.063]
[1741881722691,21.67420752,124.32,124.31,0.063]
[1741881722892,40.32385638,124.32,124.31,0.063]
[1741881723092,37.09893313,124.32,124.31,0.063]
[1741881723396,68.72061967,124.32,124.29,36.30192005]
[1741881723599,68.72061967,124.32,124.29,44.34732005]
[1741881723785,50.72660785,124.32,124.29,44.34732005]
[1741881724093,32.07695899,124.32,124.31,36.30192005]
[1741881724298,32.07695899,124.32,124.3,36.30192005]
[1741881724700,12.45771051,124.31,124.3,36.30192005]
[1741881725002,32.07695899,124.31,124.3,36.30192005]
[1741881725179,32.07695899,124.31,124.28,45.89342005]
[1741881725497,32.07695899,124.31,124.3,44.34692005]
[1741881726093,19.61924848,124.31,124.3,44.34692005]
[1741881726286,29.62803851,124.31,124.3,44.34692005]
[1741881726771,33.65862739,124.31,124.29,36.30192005]
[1741881726976,33.65862739,124.31,124.29,44.34742005]
[1741881727378,19.61896894,124.31,124.29,44.34742005]
[1741881728075,15.58838006,124.31,124.29,44.34742005]
[1741881728299,15.58838006,124.31,124.29,30.8055554]
[1741881728597,15.58838006,124.31,124.29,22.7600554]
[1741881728774,15.58838006,124.31,124.28,32.3515554]
[1741881728976,20.39408426,124.3,124.28,24.3054554]
[1741881729201,20.39408426,124.3,124.28,1.5454]
[1741881729382,20.39408426,124.3,124.28,0.03]
[1741881729885,28.43908426,124.3,124.28,0.03]
[1741881730094,20.39408426,124.3,124.28,0.03]
[1741881730704,28.07992291,124.29,124.28,0.03]
[1741881731988,32.11141487,124.29,124.28,0.03]
[1741881732574,32.11141487,124.29,124.28,22.7900554]
[1741881732996,36.14294744,124.29,124.28,23.07437854]
[1741881733199,39.36778953,124.29,124.28,23.07437854]
[1741881733495,7.52851423,124.3,124.28,23.07437854]
[1741881733677,7.52851423,124.3,124.29,52.3533554]
[1741881734418,7.99928418,124.31,124.3,0.28432314]
[1741881734714,10.00296244,124.33,124.3,31.10437854]
[1741881735019,10.00296244,124.33,124.32,45.80443394]
[1741881735375,8.06228418,124.37,124.32,45.80443394]
[1741881735582,0.063,124.37,124.36,22.7600554]
[1741881735783,0.063,124.37,124.36,30.8011554]
[1741881736400,0.063,124.37,124.36,31.08547854]
[1741881736603,0.063,124.43,124.36,73.94843394]
[1741881736804,0.063,124.43,124.42,22.7600554]
[1741881737110,0.063,124.43,124.42,8.06]
[1741881737399,0.063,124.43,124.42,30.8200554]
[1741881737611,0.063,124.43,124.42,8.06]
[1741881737795,0.063,124.43,124.42,30.8200554]
[1741881738215,0.063,124.43,124.42,8.06]
[1741881739304,36.41676697,124.43,124.38,100.59093292]
[1741881739482,36.41676697,124.43,124.38,356.41376697]
[1741881739677,36.41676697,124.43,124.38,44.41376697]
[1741881739678,26.68684886,124.42,124.38,44.41376697]
[1741881739983,63.04061583,124.42,124.38,8.06]
[1741881741107,36.35376697,124.41,124.36,44.41376697]
[1741881741288,63.04061583,124.42,124.36,44.41376697]
[1741881741689,36.35376697,124.41,124.36,44.41376697]
[1741881741920,0.063,124.43,124.38,36.35376697]
[1741881742086,0.063,124.43,124.41,36.35376697]
[1741881742605,0.063,124.43,124.42,36.35376697]
[1741881742902,0.063,124.43,124.42,36.63809011]
[1741881743210,0.063,124.43,124.42,43.04129011]
[1741881743805,0.063,124.43,124.42,51.07849011]
[1741881744215,0.063,124.45,124.44,20.0]
[1741881744511,0.063,124.45,124.44,285.96902303]
[1741881745297,0.063,124.5,124.45,0.28432314]
[1741881745499,0.063,124.5,124.49,36.63809011]
[1741881745691,0.063,124.5,124.49,72.99185708]
[1741881745886,0.063,124.5,124.49,36.63809011]
[1741881746206,0.063,124.5,124.49,348.63809011]
[1741881746599,0.063,124.5,124.49,312.0]
[1741881747011,0.063,124.5,124.48,8.06]
[1741881747415,0.063,124.5,124.49,36.35376697]
[1741881747584,0.063,124.5,124.49,36.63809011]
[1741881747788,0.063,124.5,124.49,44.67079011]
[1741881748019,0.063,124.5,124.49,82.22888889]
[1741881748188,0.063,124.5,124.49,88.79938411]
[1741881748390,0.063,124.5,124.49,281.17655006]
[1741881748590,0.063,124.5,124.49,279.97221825]
[1741881748812,0.063,124.5,124.49,273.40172303]
[1741881749028,0.063,124.5,124.49,292.05137189]
[1741881749315,0.03,124.53,124.52,20.28432314]
[1741881749527,0.03,124.53,124.52,318.8687672]
[1741881749696,0.03,124.53,124.52,299.01525606]
[1741881749896,0.03,124.53,124.52,619.04605606]
[1741881750207,0.03,124.53,124.52,561.01525606]
[1741881750931,0.03,124.53,124.52,376.66889011]
[1741881751102,0.03,124.53,124.52,569.04605606]
[1741881751835,0.0001,124.53,124.52,587.69570492]
[1741881752034,0.0001,124.53,124.52,588.19570492]
[1741881752240,0.063,124.56,124.55,56.63809011]
[1741881752534,0.063,124.56,124.55,64.69809011]
[1741881753115,0.063,124.56,124.55,101.05185708]
[1741881753309,0.063,124.56,124.55,65.90165983]
[1741881753512,0.063,124.56,124.55,258.27882578]
[1741881753740,0.063,124.56,124.55,257.07525606]
[1741881753940,0.063,124.56,124.5,8.0321]
[1741881754145,0.063,124.56,124.51,36.49592854]
[1741881755011,36.41676697,124.56,124.51,36.49592854]
[1741881756014,44.44536697,124.56,124.5,36.49592854]
[1741881756233,44.44536697,124.56,124.51,36.35376697]
[1741881756438,8.0916,124.56,124.51,36.35376697]
[1741881756746,0.063,124.56,124.52,36.35376697]
[1741881757108,0.063,124.56,124.53,36.35376697]
[1741881757340,0.063,124.56,124.54,36.35376697]
[1741881757630,0.063,124.56,124.55,36.35376697]
[1741881757841,0.063,124.56,124.55,36.63809011]
[1741881758224,0.063,124.56,124.55,44.66699011]
[1741881759132,0.063,124.56,124.55,81.02075708]
[1741881760449,0.063,124.56,124.55,356.66699011]
[1741881761943,0.063,124.56,124.55,393.02075708]
[1741881762430,0.03,124.59,124.58,20.0]
[1741881762637,0.03,124.59,124.58,56.63809011]
[1741881762828,0.03,124.59,124.58,57.8415208]
[1741881763741,0.03,124.59,124.58,258.24558675]
[1741881764050,0.03,124.59,124.58,257.04215606]
[1741881764914,0.03,124.59,124.58,36.63809011]
[1741881765115,0.03,124.59,124.58,0.28432314]
[1741881765321,0.03,124.59,124.57,36.35376697]
[1741881765518,0.03,124.59,124.58,36.35376697]
[1741881765755,0.03,124.59,124.57,44.38096697]
[1741881766048,0.03,124.59,124.54,8.17136157]
[1741881766049,36.38376697,124.59,124.54,8.17136157]
[1741881766428,36.38376697,124.59,124.54,44.52512854]
[1741881767131,0.03,124.59,124.55,36.35376697]
[1741881767334,0.03,124.59,124.56,36.35376697]
[1741881767554,36.38376697,124.59,124.54,44.52512854]
[1741881767857,44.38116697,124.58,124.53,44.52582854]
[1741881768229,8.0274,124.58,124.53,44.52582854]
[1741881768546,36.35376697,124.57,124.52,0.03]
[1741881768746,36.35376697,124.56,124.52,0.03]
[1741881769124,55.00341583,124.57,124.52,0.03]
[1741881769847,55.00341583,124.57,124.52,44.41436697]
[1741881770054,36.35376697,124.58,124.53,36.35376697]
[1741881770348,63.05991583,124.59,124.53,36.35376697]
[1741881770645,63.05991583,124.59,124.54,36.35376697]
[1741881770854,63.05991583,124.59,124.53,36.63809011]
[1741881771035,36.35376697,124.58,124.53,36.35376697]
[1741881771241,26.70614886,124.59,124.52,8.0606]
[1741881771242,55.00341583,124.57,124.52,36.38376697]
[1741881771840,26.67734886,124.57,124.52,44.41416697]
[1741881772051,63.03111583,124.57,124.52,0.03]
[1741881772654,63.03101583,124.57,124.52,36.38376697]
[1741881773257,37.87626697,124.55,124.52,0.03]
[1741881773757,36.35376697,124.54,124.52,0.03]
[1741881773945,44.38326697,124.54,124.52,0.03]
[1741881774258,1.5225,124.55,124.52,0.03]
[1741881774426,0.03,124.59,124.53,36.35376697]
[1741881774630,55.00341583,124.57,124.52,36.38376697]
[1741881775058,36.35376697,124.56,124.52,0.03]
[1741881775443,55.00341583,124.57,124.52,36.38376697]
[1741881776054,36.35376697,124.56,124.52,0.03]
[1741881776349,44.38196697,124.56,124.52,0.03]
[1741881776731,36.35376697,124.54,124.52,0.03]
[1741881776935,55.00341583,124.53,124.52,0.03]
[1741881777126,61.28551583,124.53,124.52,0.03]
[1741881778267,75.23313064,124.53,124.52,0.03]
[1741881778844,75.23313064,124.53,124.44,63.41716595]
[1741881778845,18.64964886,124.52,124.44,52.42946697]
[1741881779066,36.35376697,124.49,124.44,52.42946697]
[1741881779735,36.35376697,124.5,124.45,36.35376697]
[1741881779930,5.91751481,124.51,124.46,36.35376697]
[1741881780361,5.91751481,124.51,124.47,36.35376697]
[1741881780564,5.91751481,124.51,124.48,36.35376697]
[1741881780864,5.91751481,124.5,124.46,36.35376697]
[1741881781954,5.91751481,124.5,124.45,8.31912314]
[1741881781955,5.91751481,124.49,124.45,44.38856697]
[1741881782259,5.91751481,124.49,124.46,36.35376697]
[1741881782435,5.91751481,124.49,124.46,44.38776697]
[1741881782637,42.27128178,124.49,124.44,348.35376697]
[1741881782867,5.91751481,124.49,124.45,36.35376697]
[1741881783357,5.91751481,124.49,124.46,36.35376697]
[1741881783549,55.00341583,124.51,124.46,36.35376697]
[1741881783757,18.64964886,124.51,124.47,36.35376697]
[1741881784252,63.03491583,124.51,124.46,0.03]
[1741881784440,36.35376697,124.5,124.46,0.03]
[1741881784843,36.35376697,124.49,124.46,0.03]
[1741881786565,44.38666697,124.49,124.46,0.03]
[1741881786869,18.64964886,124.48,124.46,0.03]
[1741881787164,55.00341583,124.47,124.46,0.03]
[1741881787368,36.35376697,124.49,124.46,0.03]
[1741881787572,36.35376697,124.5,124.46,0.03]
[1741881788084,5.9670043,124.49,124.46,0.03]
[1741881788685,50.35367127,124.49,124.46,0.03]
[1741881788851,36.35376697,124.48,124.46,0.03]
[1741881789183,5.9670043,124.48,124.46,0.03]
[1741881789966,5.9670043,124.48,124.46,36.38376697]
[1741881790160,4.77329988,124.47,124.46,36.38376697]
[1741881790344,30.23027454,124.47,124.46,36.38376697]
[1741881790773,30.23027454,124.47,124.46,44.41846697]
[1741881791592,4.77329988,124.47,124.46,44.41846697]
[1741881791968,55.00341583,124.52,124.46,44.41846697]
[1741881792166,63.03441583,124.52,124.46,44.41846697]
[1741881792578,36.35376697,124.51,124.46,44.41846697]
[1741881792777,63.03441583,124.52,124.46,44.41846697]
[1741881793073,15.51008194,124.51,124.46,356.41846697]
[1741881793662,72.30369505,124.51,124.46,356.41846697]
[1741881794577,15.51008194,124.5,124.46,356.41846697]
[1741881794879,15.51008194,124.5,124.46,320.0647]
[1741881795082,15.51008194,124.5,124.46,356.41846697]
[1741881795265,15.51008194,124.5,124.46,8.0647]
[1741881795470,15.51008194,124.5,124.46,44.41846697]
[1741881795971,5.96541613,124.49,124.46,44.41846697]
[1741881796282,5.96541613,124.49,124.46,30.76328424]
[1741881796683,41.3482331,124.48,124.46,0.03]
[1741881796984,49.3822331,124.47,124.46,0.03]
[1741881797483,55.4748331,124.47,124.46,0.03]
[1741881797786,62.95406415,124.47,124.46,0.03]
[1741881797974,34.16287991,124.47,124.46,0.03]
[1741881798283,38.93615848,124.47,124.46,0.03]
[1741881798592,83.30798406,124.47,124.46,0.03]
[1741881799682,75.27398406,124.47,124.46,0.03]
[1741881799861,83.30798406,124.47,124.46,0.03]
[1741881800982,97.26227965,124.47,124.46,0.03]
[1741881802266,42.96277143,124.47,124.46,0.03]
[1741881802861,87.33459701,124.47,124.46,0.03]
[1741881803182,91.36078832,124.47,124.46,0.03]
[1741881804064,50.24968417,124.47,124.46,0.03]
[1741881804293,86.58750975,124.47,124.46,0.03]
[1741881804796,42.21568417,124.47,124.46,0.03]
[1741881805175,50.24968417,124.47,124.46,0.03]
[1741881805970,42.21568417,124.47,124.46,0.03]
[1741881808686,23.56603531,124.47,124.46,36.36782558]
[1741881808900,23.56603531,124.47,124.46,44.40252558]
[1741881809266,19.539844,124.47,124.46,36.36782558]
[1741881809884,19.539844,124.47,124.46,46.30144872]
[1741881810268,5.96541613,124.47,124.46,358.30144872]
[1741881810475,5.96541613,124.47,124.46,350.26674872]
[1741881810675,5.96541613,124.47,124.46,0.03]
[1741881810896,5.96541613,124.47,124.46,36.36782558]
[1741881811489,5.96541613,124.47,124.46,36.65214872]
[1741881812990,5.96541613,124.47,124.46,44.68684872]
[1741881813588,5.96541613,124.47,124.46,36.65214872]
[1741881813913,5.96541613,124.47,124.46,348.65214872]
[1741881814483,5.96541613,124.47,124.46,356.68684872]
[1741881814804,33.50354376,124.47,124.46,356.68684872]
[1741881816189,29.47852961,124.47,124.46,356.68684872]
[1741881816392,8.0941,124.52,124.47,0.28432314]
[1741881816780,0.063,124.52,124.48,44.37102558]
[1741881817592,12.45589852,124.51,124.48,44.37102558]
[1741881818111,28.02922481,124.51,124.48,44.37102558]
[1741881818317,28.02922481,124.51,124.48,30.72306579]
[1741881818606,4.7907302,124.5,124.48,30.72306579]
[1741881818816,4.7907302,124.5,124.49,22.68986579]
[1741881819510,4.7907302,124.5,124.48,22.68986579]
[1741881819710,4.7907302,124.5,124.48,30.72326579]
[1741881820009,4.7907302,124.5,124.46,0.03]
[1741881820192,4.7907302,124.5,124.47,22.68986579]
[1741881820705,4.7907302,124.5,124.46,334.71986579]
[1741881820912,12.8228302,124.5,124.46,334.71986579]
[1741881821209,12.8228302,124.5,124.46,22.71986579]
[1741881821406,12.8228302,124.5,124.46,0.03]
[1741881821630,15.58462322,124.49,124.46,0.03]
[1741881821815,28.04614247,124.49,124.46,0.03]
[1741881822107,28.04614247,124.49,124.46,30.75446579]
[1741881822300,36.07904247,124.49,124.46,0.03]
[1741881822610,28.04614247,124.49,124.46,30.75446579]
[1741881823109,25.5781926,124.48,124.46,30.75446579]
[1741881823314,25.5781926,124.48,124.46,22.71986579]
[1741881823490,41.25991091,124.48,124.46,22.71986579]
[1741881824584,19.60988502,124.47,124.46,22.71986579]
[1741881824984,35.29160333,124.47,124.46,22.71986579]
[1741881825304,35.29160333,124.47,124.46,0.03]
[1741881825897,45.27817015,124.47,124.46,0.03]
[1741881827011,42.05797109,124.47,124.46,0.03]